Cogmind - Beta 14 @@@ ROGUE MODE // 2024.09.28 @ 15:11:11 Player: BionicBot Result: Destroyed by MB-G1M(R) with Subdweller Shrapnel Launcher Performance ------------- Evolutions (0) 0 Regions Visited (2) 400 Robots Destroyed (19) 95 Value Destroyed (563) 563 Prototype IDs (0) 0 Alien Tech Used (0) 0 Bonus (0) 0 TOTAL SCORE: 1058 Bonus ------- None Cogmind --------- Core Integrity 0/250 Matter 261/300 Energy 100/100 System Corruption 0% Temperature Cool (0) Movement Core (400) Ox7 Location -10/Subcaves Parts ------- > --- POWER (1) -------- (None) > --- PROPULSION (2) --- Compact Wheel > --- UTILITY (2) ------ Large Storage Unit > --- WEAPON (2) ------- Battle Rifle Battle Rifle > --- INVENTORY (15) --- Subdweller Power Source Subdweller Optics Subdweller Optics Seismic Detector Scrap Shield Makeshift System Shield Cobbler Unit Battle Rifle Multitool Makeshift Hammer Peak State ------------ > --- POWER ------------ Improved Ion Engine > --- PROPULSION ------- Light Treads Light Treads > --- UTILITY ---------- Large Storage Unit Makeshift Thermal Plating > --- WEAPON ----------- Battle Rifle Subdweller Machine Gun > --- INVENTORY -------- Ion Engine Light Ion Engine Subdweller Power Source Subdweller Power Source Compact Wheel Subdweller Monowheel Subdweller Optics Subdweller Optics Seismic Detector Scrap Shield Makeshift System Shield Battle Rifle Battle Rifle Makeshift Hammer [Rating: 16] Favorites ----------- Power Improved Ion Engine Engine Improved Ion Engine Propulsion Light Treads Treads Light Treads Wheel Compact Wheel Utility Large Storage Unit Device Seismic Detector Storage Large Storage Unit Protection Makeshift Thermal Plating Weapon Assault Rifle Energy Gun Small Laser Ballistic Gun Assault Rifle Impact Weapon Makeshift Hammer Slashing Weapon Mining Claw Build | -11 -10 -10 ------- Run | Yrd Mat Sub Slots Evolved . | . . . Power . | . . . Propulsion . | . . . Utility . | . . . Weapon . | . . . Parts Attached 50 | 8 5 37 Power 4 | 1 1 2 Engine 4 | 1 1 2 Core . | . . . Reactor . | . . . Propulsion 4 | 2 . 2 Treads 3 | 2 . 1 Leg . | . . . Wheel 1 | . . 1 Hover . | . . . Flight . | . . . Utility 15 | 2 2 11 Device 9 | 1 1 7 Storage 2 | 1 1 . Processor . | . . . Hackware . | . . . Protection 4 | . . 4 Artifact . | . . . Weapon 27 | 3 2 22 Energy Gun 1 | 1 . . Energy Cannon . | . . . Ballistic Gun 19 | 2 1 16 Ballistic Cannon . | . . . Launcher . | . . . Special Weapon . | . . . Impact Weapon 5 | . . 5 Slashing Weapon 2 | . 1 1 Piercing Weapon . | . . . Special Melee Weapon . | . . . Unidentified Prototypes . | . . . Parts Lost 8 | . . 8 Power 2 | . . 2 Propulsion 3 | . . 3 Utility 1 | . . 1 Weapon 2 | . . 2 Highest Loss Streak 2 | . . 2 To Critical Strikes . | . . . Average Slot Usage (%) 98 | . 95 98 Engine 13 | . 14 13 Treads 26 | . 28 25 Wheel 1 | . . 1 Device 11 | . 9 11 Storage 14 | . 14 14 Protection 1 | . . 1 Ballistic Gun 21 | . 25 21 Impact Weapon 5 | . . 6 Peak Build Rating 16 | 7 7 16 Average Rating 11 | 5 6 12 On Entrance 4 | . 7 7 Naked Turns . | . . . Heaviest Build 37 | 13 30 37 Greatest Support 40 | 40 40 40 Greatest Overweight (x) 1 | 1 . 1 Average Overweight (x) . | . . . Largest Inventory Capacity 15 | 8 15 15 Average Capacity 14 | 7 11 15 Most Carried 15 | 3 9 15 Average Carried 12 | 2 7 13 Final Capacity 15 | 8 15 15 Final Carried 12 | 3 9 12 Class Distribution -------------------- 77% | Mutant 22% | Scavenger-Mutant Dominant Class ---------------- Mutant | -10/Materials Mutant | -10/Subcaves Resources | -11 -10 -10 ----------- Run | Yrd Mat Sub Matter Collected 1047 | 315 76 656 Remotely . | . . . Salvage Created 706 | 119 76 511 Parts 56 | 9 5 42 Haulers Intercepted . | . . . Recyclers Shooed 1 | 1 . . Parts Field Recycled . | . . . Retrieved Matter . | . . . Parts Self-Destructed 14 | . . 14 Prevented . | . . . Kills | -11 -10 -10 ------- Run | Yrd Mat Sub Combat Hostiles Destroyed 16 | . 2 14 Guns 16 | . 2 14 Classes Destroyed 8 | 2 1 5 Tunneler 2 | 2 . . Recycler 1 | 1 . . Swarmer 3 | . . 3 Grunt 2 | . 2 . Sentry 1 | . . 1 Artisan 1 | . . 1 Cobbler 1 | . . 1 Subdweller 10 | . . 10 Best Kill Streak 3 | 3 2 2 Combat Bots Only 2 | . 2 2 Max Kills in Single Turn 2 | 1 1 2 Gunslinging 1 | . . 1 Exploded . | . . . Melee . | . . . Uniques/NPCs Destroyed . | . . . Combat | -11 -10 -10 -------- Run | Yrd Mat Sub Hostile Shots Fired 122 | . 13 109 Missed 28 | . 1 27 Damage Taken 1447 | . 134 1313 Core 257 | . 11 246 Absorbed by Shields . | . . . Ignored by Resistances 49 | . . 49 Core Remaining (%) 100 | 100 . . Volleys Fired 87 | 6 13 68 Largest 2 | 2 2 2 Hottest 60 | 40 40 60 Shots Fired 164 | 12 26 126 Gun 164 | 12 26 126 Cannon . | . . . Launcher . | . . . Special . | . . . Kinetic 164 | 12 26 126 Thermal . | . . . Explosive . | . . . Electromagnetic . | . . . Robot Hit Streak 30 | 5 3 30 Robot Miss Streak 4 | 3 4 3 Penetration Max . | . . . Secondary Targets 2 | . . 2 Max Gunslinging Chain 1 | . . 1 Shots Hit Robots 109 | 7 12 90 Core Hits 35 | 4 4 27 Critical Kills 1 | . . 1 Critical Parts Destroyed . | . . . Critical Strikes 1 | . . 1 Destroy 1 | . . 1 Melee Attacks 51 | . 14 37 Impact 30 | . . 30 Slashing 21 | . 14 7 Piercing . | . . . Sneak Attacks . | . . . Combat Hostiles . | . . . Follow-up Attacks . | . . . Damage Inflicted 1777 | 98 140 1539 Guns 1777 | 98 140 1539 Cannons . | . . . Explosions . | . . . Melee . | . . . Ramming . | . . . Kinetic 1777 | 98 140 1539 Thermal . | . . . Explosive . | . . . Electromagnetic . | . . . Impact . | . . . Slashing . | . . . Piercing . | . . . Highest Corruption . | . . . Average Corruption . | . . . Corruption Purged . | . . . Corruption Blocked . | . . . Overload Shots . | . . . Overflow Damage . | . . . Projectiles . | . . . Explosions . | . . . Melee . | . . . Knockbacks . | . . . Impact . | . . . Kinetic . | . . . Secondary . | . . . Self-Inflicted Damage . | . . . Shots . | . . . Rammed . | . . . Targets Rammed . | . . . Kicked . | . . . Crushed . | . . . Highest Temperature . | . . . Average Temperature . | . . . Received Heat Transfer 279 | . 72 207 Siege Activations . | . . . Robots Corrupted . | . . . Combat Hostiles . | . . . Parts Fried . | . . . Impact Corruptions . | . . . Robots Melted . | . . . Combat Hostiles . | . . . Parts Melted 1 | . . 1 Heat Transferred . | . . . Parts Sabotaged . | . . . Parts Stolen . | . . . Parts Stripped . | . . . Power Chain Reactions . | . . . Alert | -11 -10 -10 ------- Run | Yrd Mat Sub Peak Influence 79 | 15 79 . Initial 9 | . 9 . Average 26 | 7 34 . Maximum Alert Level . | . . . Low Security (%) 100 | 100 100 . Level 1 . | . . . Level 2 . | . . . Level 3 . | . . . Level 4 . | . . . Level 5 . | . . . High Security . | . . . Max Security . | . . . Squads Dispatched 1 | . 1 . Investigation . | . . . Extermination . | . . . Reinforcement 1 | . 1 . Assault . | . . . Garrison . | . . . Intercept . | . . . Searches Triggered . | . . . Construction Impeded . | . . . Haulers Reinforced . | . . . Active Scanning Responses . | . . . Cargo Convoy Interrupts . | . . . Stealth | -11 -10 -10 --------- Run | Yrd Mat Sub Distress Signals 1 | . 1 . Communications Jammed . | . . . Distress Signals . | . . . Times Spotted 23 | . 6 17 Peak Tracking Total 6 | . 4 6 Tactical Retreats 2 | . . 2 Traps | -11 -10 -10 ------- Run | Yrd Mat Sub Traps Triggered 2 | . . 2 Indirectly . | . . . Trap Hack Attempts . | . . . Triggered . | . . . Disarmed . | . . . Reprogrammed . | . . . Reused . | . . . Traps Extracted . | . . . Installed . | . . . Triggered . | . . . Machines | -11 -10 -10 ---------- Run | Yrd Mat Sub Machines Disabled . | . . . Max in Single Turn . | . . . Machines Repaired . | . . . Machines Dismantled . | . . . Machines Sabotaged . | . . . Overloaded Fab Kills . | . . . Hacking | -11 -10 -10 --------- Run | Yrd Mat Sub Machines Accessed 1 | . 1 . Terminals 1 | . 1 . Fabricators . | . . . Repair Stations . | . . . Recycling Units . | . . . Scanalyzers . | . . . Garrison Access . | . . . Total Hacks 4 | . 4 . Successful 2 | . 2 . Failed 2 | . 2 . Catastrophic . | . . . Database Lockouts . | . . . Manual . | . . . Terminals 4 | . 4 . Fabricators . | . . . Repair Stations . | . . . Recycling Units . | . . . Scanalyzers . | . . . Garrison Access . | . . . Terminal Hacks 2 | . 2 . Terminal Index 1 | . 1 . Hauler Manifests 1 | . 1 . Fabricator Hacks . | . . . Repair Station Hacks . | . . . Recycling Unit Hacks . | . . . Scanalyzer . | . . . Garrison Access Hacks . | . . . Unauthorized Hacks . | . . . Terminals . | . . . Fabricators . | . . . Repair Stations . | . . . Recycling Units . | . . . Scanalyzers . | . . . Garrison Access . | . . . Data Cores Recovered . | . . . Used . | . . . Hacking Detections 1 | . 1 . Full Trace Events . | . . . Feedback Events . | . . . Feedback Blocked . | . . . Robot Schematics Acquired . | . . . Robots Built . | . . . Authchips . | . . . Time . | . . . Total Robot Build Rating . | . . . Part Schematics Acquired . | . . . Parts Built . | . . . Authchips . | . . . Time . | . . . Total Part Build Rating . | . . . Parts Repaired . | . . . Time . | . . . Parts Recycled . | . . . Recycled Matter . | . . . Retrieved Matter . | . . . Retrieved Components . | . . . Parts Scanalyzed . | . . . Part Schematics Acquired . | . . . Parts Damaged . | . . . Bothacking | -11 -10 -10 ------------ Run | Yrd Mat Sub Used RIF Installer . | . . . Robots Hacked . | . . . Non-combat . | . . . Combat . | . . . Robot Hacks Applied . | . . . Relay Couplers Released . | . . . Fabnet Peak Effective % . | . . . Robots Rewired . | . . . Allies Hacked . | . . . Hacks Repelled . | . . . Allies | -11 -10 -10 -------- Run | Yrd Mat Sub Total Allies . | . . . Largest Group . | . . . Highest-Rated Group . | . . . Highest-Rated Ally . | . . . Total Orders . | . . . Ally Attacks . | . . . Total Damage . | . . . Kills . | . . . Allies Corrupted . | . . . Allies Melted . | . . . Intel | -11 -10 -10 ------- Run | Yrd Mat Sub Robot Analysis Total . | . . . Derelict Logs Recovered 2 | . . 2 Drone Launches . | . . . Drone Recoveries . | . . . Exploration | -11 -10 -10 ------------- Run | Yrd Mat Sub Turns Passed 2960 | 128 306 2526 Spaces Moved 1555 | 63 127 1365 Core 5 | 5 . . Treads 1302 | 58 127 1117 Legs . | . . . Wheels 248 | . . 248 Hover . | . . . Flight . | . . . Fastest Speed 50 | 50 160 115 Average Speed 152 | 152 160 151 Slowest Speed 160 | 160 160 160 Overloaded Moves . | . . . Propulsion Burnouts . | . . . Robots Hopped . | . . . Cave-ins Triggered . | . . . Exploration Rate (%) 32 | 3 19 75 Regions Visited 2 Branch Regions 1 Pre-discovered Areas 1 | . . 1 Known Exits Taken . | . . . Unknown Exits Taken 2 | 1 1 . Scrap Searched 2 | . . 2 Spaces Dug 14 | . . 14 Terrain Destroyed 14 | . . 14 Melee 14 | . . 14 Projectile . | . . . AOE . | . . . Terrain Rammed . | . . . Walls Destroyed . | . . . Machines Disabled . | . . . Actions | -11 -10 -10 --------- Run | Yrd Mat Sub Total 1901 | 79 175 1647 Wait 109 | . 10 99 Move 1553 | 62 126 1365 Hop . | . . . Pick Up 24 | 2 5 17 Fast Attach 13 | 8 . 5 Attach 8 | . 1 7 Detach 7 | 1 1 5 Swap 29 | . 4 25 Drop 20 | . 1 19 Fire 87 | 6 13 68 Melee 51 | . 14 37 Ram . | . . . Kick . | . . . Crush . | . . . Escape Stasis . | . . . Rewire . | . . . Trap . | . . . Miscellaneous . | . . . Route ------- -11/Scrapyard -10/Materials -10/Subcaves (discovered 2 exits: [*Mat x2]) History --------- Turn | Location | Event 9 | -11/Scrapyard | Discovered new exit (range 15) 129 | -11/Scrapyard | Entered Materials 307 | -10/Materials | Build established: Mutant 410 | -10/Materials | Discovered new exit (range 3) 435 | -10/Materials | Entered Subcaves 566 | -10/Subcaves | Shifting Twisted Machinery released Mak. Thermal Plating 598 | -10/Subcaves | Shifting Twisted Machinery released Sub. Power Source 1136 | -10/Subcaves | Discovered new exit (range 2) 1195 | -10/Subcaves | Learned Materials interactive machine intel 1233 | -10/Subcaves | Discovered new exit (range 13) 1237 | -10/Subcaves | Shifting Twisted Machinery released Sub. Machine Gun 1237 | -10/Subcaves | Shifting Twisted Machinery released Sub. Machine Gun 1333 | -10/Subcaves | Ambushed by angry Subdweller bent on revenge 1460 | -10/Subcaves | A swath of the cavern ceiling suddenly collapsed 1544 | -10/Subcaves | Shifting Twisted Machinery released Sub. Beam Cannon 1563 | -10/Subcaves | Shifting Twisted Machinery released Battle Cannon 1699 | -10/Subcaves | Build established: Scavenger-Mutant 1816 | -10/Subcaves | A swath of the cavern ceiling suddenly collapsed 2016 | -10/Subcaves | Core integrity fell below 50% 2509 | -10/Subcaves | Learned location of Zion (-7) 2545 | -10/Subcaves | Build established: Mutant 2961 | -10/Subcaves | Destroyed by MB-G1M(R) with Subdweller Shrapnel Launcher Last Messages --------------- 02308_ Acquired Seismic Detector. 02311_ Lgt. Assault Rifle fries itself beyond repair. 02314_ Dropped Broken Sub. Machine Gun. 02509_ Acquired derelict log, extracted data. World map updated: -7/Zion. 02525_ Acquired 41 matter. 02528_ Acquired 25 matter. 02529_ Acquired 60 matter. 02534_ Acquired 1 matter. 02616_ Triggered Shrapnel Trap. 02616_ An expanding cloud of shrapnel blasts out in all directions. 02616_ Lgt. Treads destroyed. 02779_ Triggered Piercing Trap. 02779_ Spikes shoot up from the floor. 02779_ Critical hit (Impale). 02799_ 4M-J8B(R) destroyed. 02811_ Acquired 39 matter. 02945_ MB-G1M(R): "OHNO!" 02959_ Lgt. Treads destroyed. 02961_ Ion Engine destroyed. Map ----- +----------------------------------------------------+ | ???????????# "####" ""###??????????????????????? | | ???????????## """##?????????????????????? | | ????????????#### " "##????????????????????? | | ???????????????## " "" #????????????????????? | | ????????????????## ##" #????????????????????? | | ?????????????????## #### #????????????????????? | | ??????????????????###### #????????????????????? | | ?????????????????????## ##????????????????????? | | ???????????????????### " #?????????????????????? | | ??????????????###?## " ##?????????????????????? | | ?????????????## ### ##??????????????????????? | | ?????????????# "##???????????????????????? | | ????????????## # ##????????????????????????? | | ????????????# ########??##?????????????????????? | | ????########## #??###### #?????????????????????# | | ???## # ##" ##?## #??????????????????#### | | ???#"" " #### #??????????????????# | | #?##"" "" " ## #?????????????????## | | ###"" #""""## = ## ##???????????????### | | " ##"""####" "## ###???????????????## ## | | "######??#"" ## ##?????????????????# #? | | ##???????##"== ##??????????????????# #? | | "#??##?###### ########?????????????# #? | | " #??# ## ## "" ##;; #?????????????# #? | | """ #??## "" ;;;;#????????###### ##? | | #??# @ ;#??####### ## ##? | | #### # ## R;;#### ## ## ## | | ## ######### ; """ #?# # | | #???????## " ""] ### | | ###### ###????????## "" "" | | ?????####???????????# ## "" ]"""#### ## | | ????????????????????####"""" "#??##### ## ##? | | ???????????????????????##########??????#########?? | | ?????????????????????????????????????????????????? | | ?????????????????????????????????????????????????? | | ?????????????????????????????????????????????????? | | ?????????????????????????????????????????????????? | | ?????????????????????????????????????????????????? | | ?????????????????????????????????????????????????? | | ?????????????????????????????????????????????????? | | ?????????????????????????????????????????????????? | | ?????????????????????????????????????????????????? | | ?????????????????????????????????????????????????? | | ?????????????????????????????????????????????????? | | ?????????????????????????????????????????????????? | | ?????????????????????????????????????????????????? | | ?????????????????????????????????????????????????? | | | | | | | +----------------------------------------------------+ Best States ------------- Heat Dissipation 25 Energy Generation 12 Energy Capacity 265 Matter Stores 300 Matter Capacity 300 Sight Range 16 Terrain Scan Density 10 Armor Coverage 100 Resistance: TH 10 Evasion (%) 40 Recoil Reduction 2 Item Schematics ----------------- None Robot Schematics ------------------ None Fabricated ------------ Nothing Alien Tech Used ----------------- None Achievements -------------- None Challenges ------------ None Game ------ Seed WaveBeamDiverter Manual? 0 Play Time 00:44:02 Cumulative 173.5 hours Start 2024.09.28 @ 14:09:18 End 2024.09.28 @ 15:11:11 Sessions 1 Manual Loads 0 Difficulty Rogue Special Mode None Game No. 131 Rogue 131 Adventurer 0 Explorer 0 Win Type - Total 8 Types 7/0/1/0/0/0/0/0/0 Lore% 44 Gallery% 58 Achievement% 56 Wizard Run 0 Options --------- Layout 0 ASCII 0 Keyboard 1 Movement Numpad Keybinds 0 Fullscreen 2 Font 18/X11 Map View 76x50 Zoom Use 0% Tactical HUD 1 Map Filters NONE Filters NONE Steam 1 RUN: b6e240ee-2694-4cef-88d5-1be259510457